Cogmind - Beta 14 @@@ ROGUE MODE // 2025.05.02 @ 02:56:01 Player: Rzcen Result: Destroyed by S-27 Virus with Autogun Performance ------------- Evolutions (4) 2000 Regions Visited (10) 2000 Robots Destroyed (123) 615 Value Destroyed (3902) 3902 Prototype IDs (27) 540 Alien Tech Used (0) 0 Bonus (228) 228 TOTAL SCORE: 9285 Bonus ------- High Alert Combat Kills 64 Follower Combat Kills 438 Met Data Miner 300 Friendly Fire -574 Cogmind --------- Core Integrity 0/850 Matter 284/300 Energy 7/100 System Corruption 9% Temperature Cool (0) Movement Hovering (74) Location -5/Proximity Caves Parts ------- > --- POWER (1) -------- (None) > --- PROPULSION (4) --- Hovering Airjet Exoskeleton > --- UTILITY (8) ------ Armored Scrap Engine Improved Sensor Array (fused) Improved Signal Interpreter Advanced Targeting Computer Transmission Jammer Experimental Thermal Shield Hacking Suite > --- WEAPON (2) ------- Thermic Neutron Construct/C > --- INVENTORY (5) ---- Recalibrator Axe Greatsword Power Sword Peak State ------------ > --- POWER ------------ Antimatter-Nuclear Reactor > --- PROPULSION ------- Hovering Airjet Exoskeleton > --- UTILITY ---------- Armored Scrap Engine High-capacity Storage Unit Improved Signal Interpreter Target Analyzer Hacking Suite System Shield Sensor Drone Bay > --- WEAPON ----------- Long-range Missile Launcher Thermic Neutron Construct/C > --- INVENTORY -------- Improved Cryofiber Web Improved Trap Scanner Improved Sensor Array Advanced Targeting Computer Improved Melee Analysis Suite Recoil Stabilizer Improved Kinecellerator Transmission Jammer Experimental Thermal Shield Improved Component Analysis Suite Improved Component Analysis Suite Recalibrator Recalibrator Datajack Enhanced Flamer Axe Greatsword Power Sword [Rating: 86] Favorites ----------- Power Constructs Engine Light Deuterium Engine Reactor Constructs Propulsion Improved Treads Treads Improved Treads Wheel Compact Wheel Hover Unit Constructs Utility High-capacity Storage Unit Device Armored Scrap Engine Storage High-capacity Storage Unit Processor Signal Interpreter Hackware Hacking Suite Protection Hardened Light Armor Plating Weapon Constructs Energy Gun Spread Laser Energy Cannon Constructs Ballistic Gun Light Assault Rifle Ballistic Cannon Flak Cannon Launcher Rocket Launcher Special Weapon Mining Laser Slashing Weapon Axe Special Melee Weapon Datajack Build | -11 -10 -10 -9 -9 -9 -7 -6 -6 -6 -5 ------- Run | Yrd Mat Min Mat Sto Rec Fac Fac Low Dat Pro Slots Evolved 8 | . . . 2 . . 4 2 . . . Power . | . . . . . . . . . . . Propulsion 2 | . . . . . . 2 . . . . Utility 6 | . . . 2 . . 2 2 . . . Weapon . | . . . . . . . . . . . Parts Attached 106 | 6 2 6 39 17 5 9 12 4 . 6 Power 11 | 1 1 . 6 2 1 . . . . . Engine 11 | 1 1 . 6 2 1 . . . . . Core . | . . . . . . . . . . . Reactor . | . . . . . . . . . . . Propulsion 13 | 2 . 2 9 . . . . . . . Treads 10 | 2 . . 8 . . . . . . . Leg . | . . . . . . . . . . . Wheel 3 | . . 2 1 . . . . . . . Hover . | . . . . . . . . . . . Flight . | . . . . . . . . . . . Utility 36 | 1 1 1 8 2 2 6 9 2 . 4 Device 17 | . . . 1 . 1 5 5 2 . 3 Storage 3 | 1 . 1 . 1 . . . . . . Processor 7 | . 1 . 1 1 . 1 2 . . 1 Hackware 2 | . . . . . . . 2 . . . Protection 7 | . . . 6 . 1 . . . . . Artifact . | . . . . . . . . . . . Weapon 46 | 2 . 3 16 13 2 3 3 2 . 2 Energy Gun 14 | . . 2 9 3 . . . . . . Energy Cannon 3 | . . . . 2 1 . . . . . Ballistic Gun 4 | 2 . . . 2 . . . . . . Ballistic Cannon 6 | . . . 4 2 . . . . . . Launcher 12 | . . . 3 4 . 2 2 . . 1 Special Weapon 2 | . . 1 . . . . . . . 1 Impact Weapon . | . . . . . . . . . . . Slashing Weapon 4 | . . . . . . 1 1 2 . . Piercing Weapon . | . . . . . . . . . . . Special Melee Weapon 1 | . . . . . 1 . . . . . Unidentified Prototypes 6 | . . . . 4 1 . . . . 1 Parts Lost 32 | . 2 . 1 . 1 8 13 . . 7 Power 5 | . . . . . . 1 2 . . 2 Propulsion 7 | . 1 . 1 . . . 4 . . 1 Utility 9 | . . . . . 1 3 3 . . 2 Weapon 11 | . 1 . . . . 4 4 . . 2 Highest Loss Streak 6 | . 2 . 1 . 1 2 6 . . 3 To Critical Strikes . | . . . . . . . . . . . Average Slot Usage (%) 84 | . 91 99 99 99 84 61 62 73 73 68 Engine 8 | . 14 14 11 11 10 6 . 5 6 2 Treads 11 | . 27 . 18 22 13 4 . . . . Wheel 3 | . . 28 3 . 1 . 3 . . . Device 7 | . . . . . 6 22 17 13 13 13 Storage 9 | . 14 14 11 10 11 7 6 6 6 5 Processor 15 | . 6 14 21 22 15 4 15 13 13 16 Hackware 1 | . . . . . . . . 13 13 9 Protection 4 | . . . 10 11 2 . . . . . Energy Gun 5 | . . 13 12 . 4 3 2 . . 2 Energy Cannon 2 | . . . . 3 8 . 1 . . 3 Ballistic Gun 4 | . 28 14 1 . 2 6 5 . . . Ballistic Cannon 4 | . . . 8 13 3 . . . . . Peak Build Rating 86 | 6 7 9 22 24 43 60 79 79 77 86 Average Rating 34 | 4 6 8 16 22 31 48 69 74 77 77 On Entrance 34 | . 6 5 9 22 24 38 56 66 77 77 Naked Turns . | . . . . . . . . . . . Heaviest Build 75 | 10 12 49 64 62 59 63 72 74 69 75 Greatest Support 90 | 40 40 32 46 46 46 79 73 54 44 90 Greatest Overweight (x) 3 | 2 . 1 3 1 2 2 1 1 1 1 Average Overweight (x) . | . . . 1 1 1 . . 1 1 . Largest Inventory Capacity 20 | 8 8 20 20 20 20 20 20 20 20 20 Average Capacity 19 | 7 8 17 20 19 20 20 20 20 20 19 Most Carried 20 | 6 5 8 20 20 20 18 20 12 12 19 Average Carried 15 | 2 3 7 17 18 16 15 14 10 12 15 Final Capacity 20 | 8 8 20 20 20 20 20 20 20 20 5 Final Carried 20 | 2 5 8 20 20 15 15 7 12 12 5 Scrap Engine Consumption 188 | . . . . . 60 56 60 4 . 8 Constructs Created 13 | . . . . . 4 1 6 . . 2 Constructs Modified 58 | . . . . . 17 20 11 7 . 3 Class Distribution -------------------- 45% | Mutant 34% | Construct 11% | Commander-Mutant 6% | Hacker-Construct Dominant Class ---------------- Mutant | -10/Materials Mutant | -10/Mines Mutant | -9/Materials Mutant | -9/Storage Construct | -9/Recycling Construct | -7/Factory Construct | -6/Factory Hacker-Construct | -6/Lower Caves Hacker-Construct | -6/Data Miner Construct | -5/Proximity Caves Resources | -11 -10 -10 -9 -9 -9 -7 -6 -6 -6 -5 ----------- Run | Yrd Mat Min Mat Sto Rec Fac Fac Low Dat Pro Matter Collected 2951 | 192 122 73 630 573 62 143 512 320 . 324 Remotely . | . . . . . . . . . . . Salvage Created 3681 | . 159 21 958 386 178 913 681 35 . 350 Parts 228 | . 9 2 87 28 10 41 38 1 . 12 Haulers Intercepted 3 | . . . 1 2 . . . . . . Recyclers Shooed 3 | . . . 1 . . . 2 . . . Parts Field Recycled . | . . . . . . . . . . . Retrieved Matter . | . . . . . . . . . . . Parts Self-Destructed 11 | . . . . . . . . 1 . 10 Prevented . | . . . . . . . . . . . Kills | -11 -10 -10 -9 -9 -9 -7 -6 -6 -6 -5 ------- Run | Yrd Mat Min Mat Sto Rec Fac Fac Low Dat Pro Combat Hostiles Destroyed 92 | . 5 . 36 10 3 18 12 1 . 7 Melee 4 | . . . . . . . 2 1 . 1 Guns 55 | . 5 . 25 . . 18 5 . . 2 Cannons 19 | . . . 7 7 3 . 1 . . 1 AOE 14 | . . . 4 3 . . 4 . . 3 Classes Destroyed 18 | . 2 1 7 1 1 3 3 . . . Worker 12 | . . . 2 . . 3 7 . . . Builder 4 | . . . . 1 . . 3 . . . Tunneler 3 | . . 1 1 . . . 1 . . . Hauler 3 | . . . 1 2 . . . . . . Recycler 2 | . . . 1 . . 1 . . . . Operator 2 | . . . 1 . . . 1 . . . Drone 3 | . . . . . . . 3 . . . Watcher 5 | . . . 4 . . . 1 . . . Swarmer 26 | . 2 . 17 . . 2 4 . . 1 Grunt 24 | . 3 . 8 5 . 5 3 . . . Brawler 5 | . . . 1 . . 2 . . . 2 Duelist 3 | . . . . . . 1 1 . . 1 Sentry 22 | . . . 10 5 2 2 1 . . 2 Specialist 2 | . . . . . . . 2 . . . Hunter 2 | . . . . . . 2 . . . . Programmer 5 | . . . . . . 4 . 1 . . Behemoth 2 | . . . . . . . 1 . . 1 Scrapper 1 | . . . . . 1 . . . . . Best Kill Streak 6 | . 1 1 5 3 1 3 6 1 . 2 Combat Bots Only 4 | . 1 . 4 3 1 3 3 1 . 2 Max Kills in Single Turn 5 | . 1 1 2 2 1 1 5 1 . 1 Gunslinging . | . . . . . . . . . . . Exploded 2 | . . . 2 2 . . 1 . . 1 Melee 1 | . . . . . . . 1 1 . 1 Uniques/NPCs Destroyed . | . . . . . . . . . . . Combat | -11 -10 -10 -9 -9 -9 -7 -6 -6 -6 -5 -------- Run | Yrd Mat Min Mat Sto Rec Fac Fac Low Dat Pro Hostile Shots Fired 1032 | . 47 . 145 37 4 354 285 15 . 145 Missed 346 | . 15 . 32 11 1 128 101 6 . 52 Damage Taken 11707 | . 457 . 1303 455 76 3502 3851 170 . 1893 Core 1919 | . 112 . 200 78 . 676 527 63 . 263 Absorbed by Shields 628 | . . . . . 12 7 609 . . . Redirected to Shielding 30 | . . . 30 . . . . . . . Regen/Repaired (Parts) 2998 | . . . 28 302 25 1291 669 370 . 313 Core Remaining (%) 47 | 100 . 55 . . 30 3 . . . . Volleys Fired 375 | . 26 13 93 38 7 86 79 1 . 32 Largest 2 | . 2 2 2 2 2 2 2 1 . 2 Hottest 136 | . 40 100 130 136 136 134 94 43 . 133 Shots Fired 639 | . 52 18 179 64 12 146 133 1 . 34 Gun 452 | . 52 10 131 8 4 142 89 . . 16 Cannon 130 | . . . 44 47 8 . 26 . . 5 Launcher 48 | . . . 4 9 . 4 18 1 . 12 Special 9 | . . 8 . . . . . . . 1 Kinetic 322 | . 52 5 63 50 4 44 104 . . . Thermal 251 | . . 13 112 5 8 80 11 . . 22 Explosive 44 | . . . 4 9 . . 18 1 . 12 Electromagnetic 22 | . . . . . . 22 . . . . Robot Hit Streak 25 | . 7 5 25 8 8 22 13 4 . 8 Robot Miss Streak 11 | . 3 2 11 7 . 7 8 . . 3 Penetration Max . | . . . . . . . . . . . Secondary Targets 4 | . . . 1 . . 3 . . . . Max Gunslinging Chain 1 | . . . 1 . . 1 . . . . Shots Hit Robots 489 | . 29 7 141 34 23 131 97 2 . 25 Core Hits 391 | . 12 2 140 47 3 87 77 1 . 22 Critical Kills . | . . . . . . . . . . . Critical Parts Destroyed . | . . . . . . . . . . . Critical Strikes 2 | . . . 2 . . . . . . . Blast 2 | . . . 2 . . . . . . . Melee Attacks 45 | . . . . . 16 14 10 3 . 2 Impact . | . . . . . . . . . . . Slashing 29 | . . . . . . 14 10 3 . 2 Piercing . | . . . . . . . . . . . Sneak Attacks 18 | . . . . . 16 2 . . . . Combat Hostiles 10 | . . . . . 10 . . . . . Follow-up Attacks . | . . . . . . . . . . . Damage Inflicted 10834 | . 389 157 2204 984 145 2416 3466 70 . 1003 Guns 5242 | . 220 37 1462 . . 2023 1273 . . 227 Cannons 1711 | . . . 578 654 145 . 255 . . 79 Explosions 3203 | . 169 . 164 312 . 175 1702 38 . 643 Melee 475 | . . . . . . 218 182 32 . 43 Ramming 72 | . . . . 18 . . 54 . . . Kinetic 3585 | . 220 7 675 633 . 598 1452 . . . Thermal 3652 | . 169 150 1365 21 145 1324 161 . . 317 Explosive 2849 | . . . 164 312 . 75 1617 38 . 643 Electromagnetic 201 | . . . . . . 201 . . . . Impact . | . . . . . . . . . . . Slashing 475 | . . . . . . 218 182 32 . 43 Piercing . | . . . . . . . . . . . Highest Corruption 10 | . . . . . . 10 7 9 9 9 Average Corruption 5 | . . . . . . 2 2 8 9 9 Corruption Purged 6 | . . . . . . 6 . . . . Corruption Blocked . | . . . . . . . . . . . Effects 71 | . . . . . . 7 11 18 5 30 Message Errors 19 | . . . . . . 1 2 3 2 11 Matter Fused 16 | . . . . . . 2 2 4 1 7 Heat Flow Errors 13 | . . . . . . 1 1 4 . 7 Energy Discharges 7 | . . . . . . 2 1 2 1 1 Parts Rejected 1 | . . . . . . . 1 . . . Parts Fused 1 | . . . . . . . . . . 1 Data Loss (minor) 8 | . . . . . . . 2 3 . 3 Data Loss (major) 1 | . . . . . . . . 1 . . Misfires 2 | . . . . . . . 2 . . . Alerts 2 | . . . . . . . . 1 1 . Weapon Failures 1 | . . . . . . 1 . . . . Overload Shots . | . . . . . . . . . . . Overflow Damage 211 | . 9 30 1 . . 59 112 . . . Projectiles 31 | . . 30 1 . . . . . . . Explosions 180 | . 9 . . . . 59 112 . . . Melee . | . . . . . . . . . . . Knockbacks 34 | . . . 13 13 . . 8 . . . Impact 1 | . . . . . . . 1 . . . Kinetic 32 | . . . 13 12 . . 7 . . . Secondary 1 | . . . . 1 . . . . . . Self-Inflicted Damage 1340 | . 110 . 30 113 . 327 630 . . 130 Shots 26 | . 1 . 1 3 . 7 12 . . 2 Rammed 7 | . . . . 2 . . 5 . . . Targets Rammed 8 | . . . . 2 . 1 5 . . . Kicked 1 | . . . . . . 1 . . . . Crushed . | . . . . . . . . . . . Highest Temperature 492 | . 18 164 492 108 165 332 148 263 . 202 Average Temperature 81 | . 8 72 109 33 55 69 61 116 . 55 Received Heat Transfer 1490 | . 129 . 285 111 7 387 388 12 . 171 Effects 6 | . . . 6 . . . . . . . Shutdowns 1 | . . . 1 . . . . . . . Energy Bleed 1 | . . . 1 . . . . . . . Interference 3 | . . . 3 . . . . . . . Short Circuit 1 | . . . 1 . . . . . . . Siege Activations . | . . . . . . . . . . . Robots Corrupted . | . . . . . . . . . . . Combat Hostiles . | . . . . . . . . . . . Parts Fried . | . . . . . . . . . . . Impact Corruptions . | . . . . . . . . . . . Robots Melted 1 | . . . . . . . 1 . . . Combat Hostiles . | . . . . . . . . . . . Parts Melted 9 | . . . . . . 6 3 . . . Heat Transferred 6107 | . 100 324 1933 37 247 2714 672 . . 80 Parts Sabotaged 1 | . . . . . . . . . . 1 Parts Stolen . | . . . . . . . . . . . Parts Stripped . | . . . . . . . . . . . Power Chain Reactions 3 | . . . . . . 1 2 . . . Alert | -11 -10 -10 -9 -9 -9 -7 -6 -6 -6 -5 ------- Run | Yrd Mat Min Mat Sto Rec Fac Fac Low Dat Pro Peak Influence 646 | . 232 98 507 458 144 445 646 . . . Initial 217 | . . 86 . 121 89 50 217 . . . Average 161 | . 36 35 249 248 15 223 259 . . . Maximum Alert Level 2 | . 1 . 2 2 . 2 2 . . . Low Security (%) 56 | 100 97 100 26 37 100 39 21 . . . Level 1 39 | . 2 . 69 54 . 56 69 . . . Level 2 3 | . . . 3 7 . 3 8 . . . Level 3 . | . . . . . . . . . . . Level 4 . | . . . . . . . . . . . Level 5 . | . . . . . . . . . . . High Security . | . . . . . . . . . . . Max Security . | . . . . . . . . . . . Squads Dispatched 34 | . 1 . 4 6 . 12 10 . . 1 Investigation 3 | . . . 1 . . 1 1 . . . Extermination 4 | . . . . . . 3 1 . . . Reinforcement 15 | . 1 . 3 2 . 5 4 . . . Assault 1 | . . . . . . . . . . 1 Garrison 11 | . . . . 4 . 3 4 . . . Intercept . | . . . . . . . . . . . Searches Triggered . | . . . . . . . . . . . Construction Impeded 3 | . . . . 1 . . 2 . . . Haulers Reinforced . | . . . . . . . . . . . Active Scanning Responses . | . . . . . . . . . . . Cargo Convoy Interrupts . | . . . . . . . . . . . Stealth | -11 -10 -10 -9 -9 -9 -7 -6 -6 -6 -5 --------- Run | Yrd Mat Min Mat Sto Rec Fac Fac Low Dat Pro Distress Signals 6 | . 1 . 2 3 . . . . . . Communications Jammed . | . . . . . . . . . . . Distress Signals . | . . . . . . . . . . . Times Spotted 230 | . 15 . 57 24 6 45 46 7 . 30 Peak Tracking Total 8 | . 6 . 5 4 3 7 8 4 . 8 Tactical Retreats 33 | . 2 . 4 . . 11 10 2 . 4 Traps | -11 -10 -10 -9 -9 -9 -7 -6 -6 -6 -5 ------- Run | Yrd Mat Min Mat Sto Rec Fac Fac Low Dat Pro Traps Triggered 4 | . . . 4 . . . . . . . Indirectly . | . . . . . . . . . . . Trap Hack Attempts . | . . . . . . . . . . . Triggered . | . . . . . . . . . . . Disarmed . | . . . . . . . . . . . Reprogrammed . | . . . . . . . . . . . Reused . | . . . . . . . . . . . Traps Extracted . | . . . . . . . . . . . Installed . | . . . . . . . . . . . Triggered 1 | . . . . . . . . 1 . . Machines | -11 -10 -10 -9 -9 -9 -7 -6 -6 -6 -5 ---------- Run | Yrd Mat Min Mat Sto Rec Fac Fac Low Dat Pro Machines Disabled 18 | . 3 . 1 2 . 7 4 . . 1 Max in Single Turn 4 | . 3 . 1 1 . 4 2 . . 1 Machines Repaired . | . . . . . . . . . . . Machines Dismantled . | . . . . . . . . . . . Machines Sabotaged . | . . . . . . . . . . . Overloaded Fab Kills . | . . . . . . . . . . . Hacking | -11 -10 -10 -9 -9 -9 -7 -6 -6 -6 -5 --------- Run | Yrd Mat Min Mat Sto Rec Fac Fac Low Dat Pro Machines Accessed 54 | . 3 1 13 9 13 6 5 . 4 . Terminals 30 | . 3 . 8 7 5 4 3 . . . Fabricators 2 | . . . . . . 1 1 . . . Repair Stations 3 | . . . 2 1 . . . . . . Recycling Units 9 | . . . 1 1 7 . . . . . Scanalyzers 3 | . . . 2 . . . 1 . . . Garrison Access 1 | . . . . . . 1 . . . . Total Hacks 138 | . 6 1 32 20 30 12 9 . 28 . Successful 71 | . . 1 13 7 13 6 3 . 28 . Failed 67 | . 6 . 19 13 17 6 6 . . . Catastrophic 10 | . 1 . 2 4 2 . 1 . . . Database Lockouts . | . . . . . . . . . . . Manual 45 | . 5 . 13 12 7 5 3 . . . Terminals 69 | . 6 . 20 17 13 9 4 . . . Fabricators 2 | . . . . . . 1 1 . . . Repair Stations 7 | . . . 5 2 . . . . . . Recycling Units 19 | . . . 3 1 15 . . . . . Scanalyzers 8 | . . . 4 . . . 4 . . . Garrison Access 2 | . . . . . . 2 . . . . Terminal Hacks 48 | . . 1 7 4 4 3 1 . 28 . Record 11 | . . . . . . . . . 11 . Part Schematic 11 | . . . . . . . . . 11 . Robot Schematic 3 | . . . . . . . . . 3 . Robot Analysis 1 | . . . . 1 . . . . . . Prototype ID Bank 5 | . . . . 1 1 . . . 3 . Open Door 2 | . . 1 . 1 . . . . . . Open DSF 2 | . . . . . . 1 1 . . . Recycling Unit Index 1 | . . . . . 1 . . . . . Alert Level 2 | . . . 2 . . . . . . . Unreport Threat 3 | . . . 2 1 . . . . . . Locate Traps 1 | . . . 1 . . . . . . . Surveillance Status 1 | . . . . . . 1 . . . . Hauler Manifests 2 | . . . 1 . . 1 . . . . Zone Layout 1 | . . . 1 . . . . . . . Release Object 2 | . . . . . 2 . . . . . Fabricator Hacks 1 | . . . . . . 1 . . . . Network Status 1 | . . . . . . 1 . . . . Repair Station Hacks 5 | . . . 3 2 . . . . . . Scan Component 3 | . . . 2 1 . . . . . . Repair 2 | . . . 1 1 . . . . . . Recycling Unit Hacks 8 | . . . . 1 7 . . . . . Retrieve Components 8 | . . . . 1 7 . . . . . Scanalyzer 4 | . . . 3 . . . 1 . . . Insert Component 3 | . . . 2 . . . 1 . . . Analyze 1 | . . . 1 . . . . . . . Garrison Access Hacks . | . . . . . . . . . . . Unauthorized Hacks 5 | . . . . . 2 2 1 . . . Terminals 5 | . . . . . 2 2 1 . . . Botnet 5 | . . . . . 2 2 1 . . . Fabricators . | . . . . . . . . . . . Repair Stations . | . . . . . . . . . . . Recycling Units . | . . . . . . . . . . . Scanalyzers . | . . . . . . . . . . . Garrison Access . | . . . . . . . . . . . Data Cores Recovered 2 | . . . . . . 1 1 . . . Used 1 | . . . . . . 1 . . . . Hacking Detections 39 | . 3 . 11 6 10 5 4 . . . Full Trace Events 4 | . . . . 1 1 1 1 . . . Feedback Events . | . . . . . . . . . . . Feedback Blocked . | . . . . . . . . . . . Robot Schematics Acquired 3 | . . . . . . . . . 3 . Robots Built . | . . . . . . . . . . . Authchips . | . . . . . . . . . . . Time . | . . . . . . . . . . . Total Robot Build Rating . | . . . . . . . . . . . Part Schematics Acquired 12 | . . . 1 . . . . . 11 . Parts Built . | . . . . . . . . . . . Authchips . | . . . . . . . . . . . Time . | . . . . . . . . . . . Total Part Build Rating . | . . . . . . . . . . . Parts Repaired 2 | . . . 1 1 . . . . . . Time 52 | . . . 26 26 . . . . . . Parts Recycled . | . . . . . . . . . . . Recycled Matter . | . . . . . . . . . . . Retrieved Matter . | . . . . . . . . . . . Retrieved Components 37 | . . . . 10 27 . . . . . Parts Scanalyzed 1 | . . . 1 . . . . . . . Part Schematics Acquired 1 | . . . 1 . . . . . . . Parts Damaged . | . . . . . . . . . . . Bothacking | -11 -10 -10 -9 -9 -9 -7 -6 -6 -6 -5 ------------ Run | Yrd Mat Min Mat Sto Rec Fac Fac Low Dat Pro Used RIF Installer . | . . . . . . . . . . . Robots Hacked . | . . . . . . . . . . . Non-combat . | . . . . . . . . . . . Combat . | . . . . . . . . . . . Robot Hacks Applied . | . . . . . . . . . . . Relay Couplers Released . | . . . . . . . . . . . Fabnet Peak Effective % . | . . . . . . . . . . . Robots Rewired 11 | . . . . . 11 . . . . . Allies Hacked . | . . . . . . . . . . . Hacks Repelled . | . . . . . . . . . . . Allies | -11 -10 -10 -9 -9 -9 -7 -6 -6 -6 -5 -------- Run | Yrd Mat Min Mat Sto Rec Fac Fac Low Dat Pro Total Allies 26 | . . 4 . 10 11 . . . . 1 Largest Group 10 | . . 4 . 10 10 3 . . . 1 Highest-Rated Group 118 | . . 71 . 88 118 54 . . . 96 Highest-Rated Ally 96 | . . 31 . 16 27 27 . . . 96 Total Orders 5 | . . . . 2 . . . 2 . 1 STAY 1 | . . . . 1 . . . . . . FOLLOW 1 | . . . . 1 . . . . . . EXPLORE 2 | . . . . . . . . 2 . . RETURN 1 | . . . . . . . . . . 1 Ally Attacks 131 | . . . . 70 43 4 . . . 14 Total Damage 2004 | . . . . 635 711 133 . . . 525 Kills 27 | . . . . 13 11 3 . . . . Allies Corrupted . | . . . . . . . . . . . Allies Melted . | . . . . . . . . . . . Intel | -11 -10 -10 -9 -9 -9 -7 -6 -6 -6 -5 ------- Run | Yrd Mat Min Mat Sto Rec Fac Fac Low Dat Pro Robot Analysis Total 1 | . . . . 1 . . . . . . Derelict Logs Recovered 4 | . . 2 . . . . . 1 . 1 Drone Launches 42 | . . . . . . . 18 18 . 6 Drone Recoveries 31 | . . . . . . . 1 25 . 5 Exploration | -11 -10 -10 -9 -9 -9 -7 -6 -6 -6 -5 ------------- Run | Yrd Mat Min Mat Sto Rec Fac Fac Low Dat Pro Turns Passed 14119 | 74 610 1039 3292 1489 2975 1847 1183 644 112 854 Spaces Moved 7257 | 51 193 672 1243 524 1283 1108 960 388 86 749 Core 22 | 22 . . . . . . . . . . Treads 3198 | 29 193 . 1008 524 905 539 . . . . Legs 771 | . . . . . 151 271 . . . 349 Wheels 1657 | . . 672 235 . 227 . 523 . . . Hover 1291 | . . . . . . . 417 388 86 400 Flight 318 | . . . . . . 298 20 . . . Fastest Speed 50 | 50 160 100 115 240 160 75 81 104 131 74 Average Speed 157 | 120 160 111 216 240 208 136 89 125 131 99 Slowest Speed 337 | 160 160 115 320 240 337 265 120 131 131 131 Overloaded Moves . | . . . . . . . . . . . Propulsion Burnouts . | . . . . . . . . . . . Robots Hopped . | . . . . . . . . . . . Cave-ins Triggered . | . . . . . . . . . . . Exploration Rate (%) 63 | 3 35 99 94 80 99 33 27 97 71 60 Regions Visited 10 Branch Regions 6 Pre-discovered Areas 2 | . . . . . . . . . 1 1 Known Exits Taken 9 | . 1 1 1 1 1 1 1 1 1 . Unknown Exits Taken 1 | 1 . . . . . . . . . . Scrap Searched 11 | . . 3 . . . . . 5 . 3 Spaces Dug 16 | . . . . . . 12 2 2 . . Terrain Destroyed 560 | . 24 . 28 59 . 107 186 14 . 142 Melee 16 | . . . . . . 12 2 2 . . Projectile 4 | . . . 1 . . . . . . 3 AOE 540 | . 24 . 27 59 . 95 184 12 . 139 Terrain Rammed . | . . . . . . . . . . . Walls Destroyed . | . . . . . . . . . . . Machines Disabled . | . . . . . . . . . . . Actions | -11 -10 -10 -9 -9 -9 -7 -6 -6 -6 -5 --------- Run | Yrd Mat Min Mat Sto Rec Fac Fac Low Dat Pro Total 9251 | 63 452 929 1683 687 1576 1283 1142 537 85 814 Wait 1258 | . 228 234 228 77 231 57 49 136 . 18 Move 7247 | 50 192 671 1242 523 1282 1107 959 387 85 749 Hop . | . . . . . . . . . . . Pick Up 125 | 7 4 5 44 22 11 7 14 5 . 6 Fast Attach 6 | 1 . . 1 2 1 . . . . 1 Attach 42 | 5 1 2 9 2 1 8 11 . . 3 Detach 6 | . . . 1 . 2 1 1 . . 1 Swap 58 | . 1 4 29 13 3 1 1 4 . 2 Drop 80 | . . . 36 8 22 1 13 . . . Fire 375 | . 26 13 93 38 7 86 79 1 . 32 Melee 45 | . . . . . 16 14 10 3 . 2 Ram 5 | . . . . . . . 5 . . . Kick 1 | . . . . . . 1 . . . . Crush 2 | . . . . 2 . . . . . . Escape Stasis . | . . . . . . . . . . . Rewire 1 | . . . . . . . . 1 . . Trap . | . . . . . . . . . . . Miscellaneous . | . . . . . . . . . . . Route ------- -11/Scrapyard -10/Materials -10/Mines (discovered 2 exits: *Mat x2) -9/Materials (discovered 6 exits: *Mat x2 / *Min x2 / *Sto x2) -9/Storage (discovered 2 exits: *Mat / *Rec) -9/Recycling -7/Factory (discovered 2 exits: *Fac x2) -6/Factory -6/Lower Caves (discovered 2 exits: *Low / *Dat) -6/Data Miner -5/Proximity Caves History --------- Turn | Location | Event 32 | -11/Scrapyard | Discovered new exit (range 15) 75 | -11/Scrapyard | Entered Materials 304 | -10/Materials | Build established: Mutant 649 | -10/Materials | Discovered new exit (range 7) 683 | -10/Materials | Identified exit to Mines 685 | -10/Materials | Entered Mines 688 | -10/Mines | Received a Mining Laser from a helpful Derelict 705 | -10/Mines | Assisted by bots powering up and referring to "LRC-V3" 733 | -10/Mines | Discovered new exit (range 15) 746 | -10/Mines | Identified exit to Materials 754 | -10/Mines | Found the Drone Emporium 758 | -10/Mines | Found Prototype Device 784 | -10/Mines | YI-UF0 nonchalantly dropped a Grenade Launcher on the ground 863 | -10/Mines | Learned Materials interactive machine intel 895 | -10/Mines | Learned Materials terminal intel 1417 | -10/Mines | Discovered exit to Materials (range 10) 1724 | -10/Mines | Entered Materials 1724 | -9/Materials | Evolved 2 slots: Utility x2 1725 | -9/Materials | Loaded intel: 18 interactive machine locations 1726 | -9/Materials | Loaded intel: 12 terminal locations 2165 | -9/Materials | Repaired Com. Wheel 2191 | -9/Materials | Discovered new exit (range 13) 2299 | -9/Materials | Discovered new exit (range 10) 2300 | -9/Materials | Discovered new exit (range 14) 2518 | -9/Materials | Identified exit to Storage 2937 | -9/Materials | Discovered new exit (range 5) 3003 | -9/Materials | Discovered new exit (range 16) 3036 | -9/Materials | Identified exit to Materials 3136 | -9/Materials | Identified Sensor Drone Bay 3332 | -9/Materials | Identified exit to Mines 4348 | -9/Materials | Discovered exit to Materials (range 13) 5016 | -9/Materials | Entered Storage 5107 | -9/Storage | Assisted by bots powering up and referring to "LRC-V3" 5121 | -9/Storage | Core integrity fell below 50% 5394 | -9/Storage | Build established: Commander-Mutant 5603 | -9/Storage | Garrison activated, responded to threat 5704 | -9/Storage | Garrison activated, responded to threat 5705 | -9/Storage | Lost 6 allies 5814 | -9/Storage | Repaired Hcp. Storage Unit 5930 | -9/Storage | Build established: Mutant 6318 | -9/Storage | Discovered exit to Materials (range 15) 6495 | -9/Storage | Used back door to open Recycling access 6495 | -9/Storage | Discovered new exit (range 5) 6503 | -9/Storage | Identified exit to Recycling 6505 | -9/Storage | Entered Recycling 6909 | -9/Recycling | Discovered new exit (range 6) 6928 | -9/Recycling | Identified exit to Factory 7017 | -9/Recycling | Build established: Commander-Mutant 7720 | -9/Recycling | Scanned before Scraplab entrance 7766 | -9/Recycling | Entered Scraplab 7787 | -9/Recycling | Angered Scraplab inhabitants 7791 | -9/Recycling | Found Prototype Device 7791 | -9/Recycling | Identified Scrap Engine 7833 | -9/Recycling | Lost 6 allies 8249 | -9/Recycling | Build established: Construct 9480 | -9/Recycling | Entered Factory 9480 | -7/Factory | Accompanied by 3 allies 9480 | -7/Factory | Evolved 4 slots: Propulsion x2, Utility x2 9752 | -7/Factory | Lost 3 allies 10235 | -7/Factory | Garrison activated, responded to threat 10843 | -7/Factory | Discovered new exit (range 7) 10857 | -7/Factory | Core integrity fell below 50% 10897 | -7/Factory | Identified exit to Factory 11019 | -7/Factory | Discovered exit to Factory (range 11) 11199 | -7/Factory | Core integrity fell below 20% 11311 | -7/Factory | System corruption reached 10% 11327 | -7/Factory | Entered another Factory area 11327 | -6/Factory | Evolved 2 slots: Utility x2 11711 | -6/Factory | Spotted B-75 Beast 11823 | -6/Factory | Destroyed B-75 Beast 12087 | -6/Factory | Garrison activated, responded to threat 12384 | -6/Factory | Lost 6 parts (2n3u1w) 12392 | -6/Factory | Core integrity fell below 50% 12452 | -6/Factory | Garrison activated, responded to threat 12483 | -6/Factory | Discovered new exit (range 16) 12509 | -6/Factory | Identified exit to Lower Caves 12510 | -6/Factory | Entered Lower Caves 12510 | -6/Lower Caves | Accompanied by 10 allies 12537 | -6/Lower Caves | Lost 5 allies 12784 | -6/Lower Caves | Discovered new exit (range 96) 12872 | -6/Lower Caves | Learned Factory terminal intel 12946 | -6/Lower Caves | Encountered a Warlord checkpoint 12952 | -6/Lower Caves | Identified exit to Lower Caves 12960 | -6/Lower Caves | Build established: Hacker-Construct 13146 | -6/Lower Caves | A Derelict revealed a hidden shortcut to meet someone special 13153 | -6/Lower Caves | Identified exit to Data Miner 13154 | -6/Lower Caves | Entered Data Miner 13154 | -6/Data Miner | Discovered new exit (range 6) 13161 | -6/Data Miner | Identified exit to Proximity Caves 13179 | -6/Data Miner | Met Data Miner 13208 | -6/Data Miner | Learned location of Section 7 (-3) 13208 | -6/Data Miner | Acquired the access code to Warlord's prototype stash 13229 | -6/Data Miner | Received God Mode back door access code from Data Miner 13266 | -6/Data Miner | Entered Proximity Caves 13289 | -5/Proximity Caves | Escorted by Enhanced Grunt 13317 | -5/Proximity Caves | Attracted the attention of an 0b10 checkpoint 13357 | -5/Proximity Caves | Spotted B-75 Beast 13373 | -5/Proximity Caves | Destroyed B-75 Beast 13386 | -5/Proximity Caves | Found Prototype Device 13626 | -5/Proximity Caves | Attracted the attention of an 0b10 outpost 13645 | -5/Proximity Caves | Core integrity fell below 20% 13678 | -5/Proximity Caves | Lost 3 parts (1p1u1w) 13945 | -5/Proximity Caves | Build established: Construct 14114 | -5/Proximity Caves | Identified Exp. Thermal Shield 14120 | -5/Proximity Caves | Destroyed by S-27 Virus with Autogun Last Messages --------------- 13975_ Penetrated by Slug. 13978_ Slug penetrates Wall. 14028_ Penetrated by Slug. 14030_ System corrupted: Heat flow error (+226). 14046_ ICTB99F 14050_ Discarded Target Analyzer. 14066_ Slug penetrates Wall. 14069_ Penetrated by Slug. 14069_ Antimatter-Nuclear Reactor destroyed. 14069_ Arm. Scrap Engine damaged due to network destabilization (-7). 14093_ System corrupted: Matter fused (-9). 14095_ Slug penetrates Wall. 14111_ I6,NUAPR4 N2PBZR /KW|HZZSU7G,YC 14113_ Hcp. Storage Unit destroyed. 14114_ Acquired Prototype Device. 14114_ Identified Exp. Thermal Shield. 14120_ Hovering Airjet Exoskeleton destroyed. 14120_ Hovering Airjet Exoskeleton core remains intact and functional. [Achievement: Just Browsing] Map ----- +----------------------------------------------------+ | ?????????????????????????????????????????????????? | | ?????????????????????????????????????????????????? | | ?????????????????????????????????????????????????? | | ?????????????????????????????????????????????????? | | ?????????????????????????????????????????????????? | | ?????????????????????????????????????????????????? | | ?????????????????????????????????????????????????? | | ?????????????????????????????????????????????????? | | ?????????????????????????????????????????????????? | | ?????????????????????????????????????????????????? | | ?????????????????????????????????????????????????? | | ?????????????????????????????????????????????????? | | ?????????????????????????????????????????????????? | | ?????????????????????????????????????????????????? | | ?????????????????????????????????????????????????? | | ?????????????????????????????????????????????????? | | ?????????????????????????????????????????????????? | | ?????????????????????????????????????????????????? | | ?????????????????????????????????????????????????? | | ?????????????????????????????????????????????????? | | ???????????????????????????????????????? ??????? | | ??????????????????????###?????????????? ???????? | | ??????????????????????# ##?????####??? ????????? | | ??????????????????????# #????## ##? #????????? | | ??????????????????????# #???## #? #????????? | | ?????????????????????## @#??## ## #????????? | | ????????????????????## ss#### #????????? | | ?????????????# ## s!/!## #??????#?? | | ????????????# s!!! ######??? ##? | | ????????????# s ! n #??? #? | | ????????????## ### ### #?? #?? | | ?????????????# ##??###?## ### #?? | | ?????????????# ####???######## #?# | | ?????????????## ???????## ### ### | | ??????????????#????????# ?## | | ??????????????????????## #???# | | ?????????????????###??# ##?## ##" ## | | ????????????????## #### ### #### ##?? | | ???????????????## ## h ##? | | ?????????????### ## """ #?? | | ?????????????# ## """""" #??# | | ?????????????# ######## """ """ #?## | | ????????????## ##??????# """ ### | | ???????????## ##???????# """ """ | | ???????????# ##??????### """""" | | ???????????# ##??????## """ | | ???????????# ##??????# ### | | ???????????# ###????# ##?# | | ???????????###### ##???# ##?## | | ????????????????### #???# ## ##?## | +----------------------------------------------------+ Best States ------------- Heat Dissipation 56 Energy Generation 25 Energy Capacity 372 Matter Stores 300 Matter Capacity 300 Sight Range 22 Robot Scan Range 15 Terrain Scan Density 10 ECM Strength 1 Jamming Range 12 Armor Coverage 150 Resistance: TH 30 Propulsion Shielding 33 Evasion (%) 60 Targeting Accuracy 8 Target Analysis 5 Recoil Reduction 4 Offensive Hacking 10 Defensive Hacking 10 Authchip Count 8 Item Schematics ----------------- Imp. Assault Rifle | -9/Materials | Scanalyzed Combat Drone Bay | -6/Data Miner | Free Lgt. Regenerative Plating | -6/Data Miner | Free Cld. Gravmag System | -6/Data Miner | Free Prc. Energy Filter | -6/Data Miner | Free Neutron Cannon | -6/Data Miner | Free Impulse Thruster | -6/Data Miner | Free Adv. Cryofiber Web | -6/Data Miner | Free Railgun | -6/Data Miner | Free Adv. Plasma Cannon | -6/Data Miner | Free Adv. Focal Shield | -6/Data Miner | Free Adv. Launcher Guidance Computer | -6/Data Miner | Free Robot Schematics ------------------ R-10 Processor | -6/Data Miner | Free H-66 Slayer | -6/Data Miner | Free I-47 Archangel | -6/Data Miner | Free Fabricated ------------ Nothing Alien Tech Used ----------------- None Achievements -------------- Just Browsing The Oracle Challenges ------------ None Game ------ Seed VariablePoweredPod Manual? 0 Play Time 02:37:01 Cumulative 40.5 hours Start 2025.05.01 @ 22:54:05 End 2025.05.02 @ 02:56:01 Sessions 1 Manual Loads 0 Difficulty Rogue Special Mode None Game No. 37 Rogue 33 Adventurer 4 Explorer 0 Win Type - Total 0 Types 0/0/0/0/0/0/0/0/0 Lore% 13 Gallery% 25 Achievement% 24 Wizard Run 0 Options --------- Layout 0 ASCII 0 Keyboard 0 Movement Mouse Keybinds 0 Fullscreen 1 Font 24/Smallcaps Map View 76x50 Zoom Use 0% Tactical HUD 1 Map Filters NONE Filters NONE Steam 1 RUN: f6c88f9a-547e-46d8-a12b-33215d99d18c